fUSD/lending_fUSD_20260404
["ID","MTS","AMOUNT","RATE_DAILY","PERIOD"]
[419678074,1775279478577,-10000.01,9.456e-05,2]
[419678075,1775279478718,-10000.01,9.456e-05,2]
[419678076,1775279478861,-10000.01,9.456e-05,2]
[419678077,1775279485077,1072.04030549,9.455e-05,3]
[419678078,1775279485132,-10000.01,9.456e-05,2]
[419678079,1775279485224,-10000.01,9.456e-05,2]
[419678080,1775279485340,-10000.01,9.456e-05,2]
[419678081,1775279485451,-10000.01,9.456e-05,2]
[419678082,1775279487672,-10000.01,9.456e-05,2]
[419678083,1775279502495,-10000.01,9.456e-05,2]
[419678084,1775279502592,-10000.01,9.456e-05,2]
[419678085,1775279502716,-10000.01,9.456e-05,2]
[419678086,1775279502806,-10000.01,9.456e-05,2]
[419678087,1775279502907,-10000.01,9.456e-05,2]
[419678088,1775279502997,-10000.01,9.456e-05,2]
[419678089,1775279503097,-10000.01,9.456e-05,2]
[419678090,1775279503183,-10000.01,9.456e-05,2]
[419678091,1775279526741,-300.0,9.455e-05,2]
[419678092,1775279526767,-150.0,9.455e-05,2]
[419678093,1775279526816,-9100.01,9.456e-05,2]
[419678094,1775279526984,-10000.01,9.456e-05,2]
[419678095,1775279527100,-10000.01,9.456e-05,2]
[419678096,1775279527210,-10000.01,9.456e-05,2]
[419678097,1775279527313,-10000.01,9.456e-05,2]
[419678098,1775279527588,-10000.01,9.456e-05,2]
[419678099,1775279527699,-10000.01,9.456e-05,2]
[419678100,1775279527801,-10000.01,9.456e-05,2]
[419678101,1775279527940,-10000.01,9.456e-05,2]
[419678102,1775279527968,1942.881445,7.945e-05,2]
[419678103,1775279528045,-10000.01,9.456e-05,2]
[419678104,1775279545765,-286.0,9.456e-05,2]
[419678105,1775279545807,-9428.01,9.456e-05,2]
[419678106,1775279545883,-10000.01,9.456e-05,2]
[419678107,1775279546032,-10000.01,9.456e-05,2]
[419678108,1775279546202,-10000.01,9.456e-05,2]
[419678109,1775279546333,-10000.01,9.456e-05,2]
[419678110,1775279546379,-10000.01,9.456e-05,2]
[419678111,1775279546467,-10000.01,9.456e-05,2]
[419678112,1775279566102,-10000.01,9.456e-05,2]
[419678113,1775279566778,-10000.01,9.456e-05,2]
[419678114,1775279566885,-10000.01,9.456e-05,2]
[419678115,1775279566994,-10000.01,9.456e-05,2]
[419678116,1775279567111,-10000.01,9.456e-05,2]
[419678117,1775279567207,-10000.01,9.456e-05,2]
[419678118,1775279567321,-10000.01,9.456e-05,2]
[419678119,1775279567415,-10000.01,9.456e-05,2]
[419678120,1775279567549,-10000.01,9.456e-05,2]
[419678121,1775279572266,-10000.01,9.456e-05,2]
[419678122,1775279572355,-10000.01,9.456e-05,2]
[419678123,1775279572479,-10000.01,9.456e-05,2]
[419678124,1775279572578,-10000.01,9.456e-05,2]
[419678125,1775279572705,-10000.01,9.456e-05,2]
[419678126,1775279572848,-10000.01,9.456e-05,2]
[419678127,1775279573107,-10000.01,9.456e-05,2]
[419678128,1775279573183,-10000.01,9.456e-05,2]
[419678129,1775279573408,-10000.01,9.456e-05,2]
[419678130,1775279587398,670.0,7.945e-05,2]
[419678131,1775279587425,2648.40536653,7.945e-05,2]
[419678132,1775279587449,2648.40536653,7.945e-05,2]
[419678133,1775279587472,2648.40536653,7.945e-05,2]
[419678134,1775279587495,2648.40536653,7.945e-05,2]
[419678135,1775279587518,2648.40536653,7.945e-05,2]
[419678136,1775279587541,2648.40536653,7.945e-05,2]
[419678137,1775279587562,1820.06367182,7.945e-05,2]
[419678138,1775279648146,828.34169471,7.945e-05,2]
[419678139,1775279648170,2648.40536653,7.945e-05,2]
[419678140,1775279648574,2648.40536653,7.945e-05,2]
[419678141,1775279648597,2648.40536653,7.945e-05,2]
[419678142,1775279662619,161.0,6.066e-05,2]
[419678143,1775279662873,154.0,6.066e-05,2]
[419678144,1775279663144,154.0,6.066e-05,2]
[419678145,1775279663391,154.0,6.066e-05,2]
[419678146,1775279663647,154.0,6.066e-05,2]
[419678147,1775279663906,154.0,6.066e-05,2]
[419678148,1775279664159,154.0,6.066e-05,2]
[419678149,1775279664411,154.0,6.066e-05,2]
[419678150,1775279664667,154.0,6.066e-05,2]
[419678151,1775279664924,154.0,6.066e-05,2]
[419678152,1775279665177,154.0,6.066e-05,2]
[419678153,1775279711681,-264.0,7.945e-05,2]
[419678154,1775279711703,-1065.3692577,7.945e-05,2]
[419678155,1775279711725,-200.0,8.5e-05,2]
[419678156,1775279711746,-327.32,9.245e-05,2]
[419678157,1775279711768,-300.0,9.355e-05,2]
[419678158,1775279711790,-1200.0,9.355e-05,2]
[419678159,1775279711812,-300.0,9.355e-05,2]
[419678160,1775279711832,-300.0,9.355e-05,2]
[419678161,1775279711852,-300.0,9.355e-05,2]
[419678162,1775279711873,-150.0,9.355e-05,2]
[419678163,1775279711894,-5593.3107423,9.356e-05,2]
[419678164,1775279714379,-1179.6053577,9.356e-05,2]
[419678165,1775279714399,-8820.3946423,9.356e-05,2]
[419678166,1775279715444,-10000.0,9.356e-05,2]
[419678167,1775279716496,-10000.0,9.355e-05,2]
[419678168,1775279719397,-10000.0,9.355e-05,2]
[419678169,1775279720435,-10000.0,9.355e-05,2]
[419678170,1775279721988,-10000.0,9.355e-05,2]
[419678171,1775279723281,-284.0,9.355e-05,2]
[419678172,1775279723306,-9716.0,9.355e-05,2]
[419678174,1775279768696,153.0,9.355e-05,3]
[419678175,1775279829075,153.0,9.355e-05,3]
[419678176,1775279868553,-1924.0,9.308e-05,2]
[419678178,1775279891971,153.0,9.308e-05,3]
[419678179,1775279903977,-300.0,9.307e-05,2]
[419678180,1775279904000,-300.0,9.307e-05,2]
[419678181,1775279904023,-250.0,9.308e-05,2]
[419678182,1775279904046,-9150.0,9.308e-05,2]
[419678183,1775279913314,-284.0,9.308e-05,2]
[419678184,1775279913635,-1618.547556,9.308e-05,2]
[419678185,1775279913657,-861.06145815,9.332e-05,2]
[419678186,1775279913679,-150.0,9.355e-05,2]
[419678187,1775279913702,-193.0,9.356e-05,2]
[419678188,1775279913725,-3597.94650185,9.356e-05,2]
[419678189,1775279913749,-295.444484,9.356e-05,2]
[419678190,1775279946649,153.0,9.356e-05,3]
[419678191,1775279967402,-283.89,9.309e-05,2]
[419678192,1775280011158,153.0,9.309e-05,3]
[419678196,1775280453136,-211.02,7.988e-05,2]
[419678197,1775280453157,-5967.443206,8.178e-05,2]
[419678198,1775280453176,-150.0363523,8.178e-05,2]
[419678199,1775280453197,-250.0,8.178e-05,2]
[419678200,1775280453218,-267.0,8.178e-05,2]
[419678201,1775280453238,-500.0,8.189e-05,2]
[419678202,1775280453260,-300.0,8.298e-05,2]
[419678203,1775280453290,-1277.2725342,8.299e-05,2]
[419678204,1775280460688,225.19,8.3e-05,3]
[419678205,1775280551148,-260.28,8.153e-05,2]
[419678206,1775280551171,-2574.67072918,8.299e-05,2]
[419678207,1775280551191,-920.59236563,8.321e-05,2]
[419678208,1775280551212,-200.0,8.321e-05,2]
[419678209,1775280551235,-3247.72728719,8.373e-05,2]
[419678210,1775280560086,-15540.95846003,8.373e-05,2]
[419678211,1775280560106,-500.0,8.373e-05,2]
[419678212,1775280560126,-920.59236561,8.428e-05,2]
[419678213,1775280560146,-1200.0,8.439e-05,2]
[419678214,1775280560166,-300.0,8.439e-05,2]
[419678215,1775280560186,-12368.44,8.44e-05,2]
[419678216,1775280560207,-150.0,8.472e-05,2]
[419678217,1775280560229,-4412.78953436,8.473e-05,2]
[419678218,1775280562724,163.0,6.066e-05,2]
[419678219,1775280562895,158.0,6.066e-05,2]
[419678220,1775280563101,-13051.61046564,8.473e-05,2]
[419678221,1775280563121,-300.0,8.488e-05,2]
[419678222,1775280563141,-300.0,8.488e-05,2]
[419678223,1775280563162,-1200.0,8.488e-05,2]
[419678224,1775280563182,-23908.81,8.489e-05,2]
[419678225,1775280563208,-920.59236561,8.535e-05,2]
[419678226,1775280563229,-1049.14,8.535e-05,2]
[419678227,1775280563250,-10271.26,8.604e-05,2]
[419678228,1775280563270,-3941.66,8.676e-05,2]
[419678229,1775280563290,-193.0,8.968e-05,2]
[419678230,1775280563311,-470.34138875,8.968e-05,2]
[419678231,1775280563349,158.0,6.066e-05,2]
[419678232,1775280563456,158.0,6.066e-05,2]
[419678233,1775280563638,158.0,6.066e-05,2]
[419678234,1775280563891,158.0,6.066e-05,2]
[419678235,1775280564142,158.0,6.066e-05,2]
[419678236,1775280564404,158.0,6.066e-05,2]
[419678237,1775280564706,158.0,6.066e-05,2]
[419678238,1775280564960,158.0,6.066e-05,2]
[419678239,1775280565210,158.0,6.066e-05,2]
[419678240,1775280565457,158.0,6.066e-05,2]
[419678241,1775280566028,1647.07770802,0.000161,120]
[419678242,1775280566390,166.0,6.066e-05,2]
[419678243,1775280566644,156.0,6.066e-05,2]
[419678244,1775280566888,156.0,6.066e-05,2]
[419678245,1775280567146,156.0,6.066e-05,2]
[419678246,1775280567391,156.0,6.066e-05,2]
[419678247,1775280567637,156.0,6.066e-05,2]
[419678248,1775280567915,156.0,6.066e-05,2]
[419678249,1775280568094,-3412.07526294,8.968e-05,2]
[419678250,1775280568117,-250.0,8.996e-05,2]
[419678251,1775280568141,-5000.0,8.996e-05,2]
[419678252,1775280568164,-250.0,8.996e-05,2]
[419678253,1775280568187,-5000.0,8.996e-05,2]
[419678254,1775280568210,-193.0,8.996e-05,2]
[419678255,1775280568233,-5000.0,8.996e-05,2]
[419678256,1775280568256,-420.0,9.128e-05,2]
[419678257,1775280568284,-250.0,9.129e-05,2]
[419678258,1775280568307,-1680.0,9.283e-05,2]
[419678259,1775280568331,-420.0,9.283e-05,2]
[419678260,1775280568354,-999.99,9.3e-05,2]
[419678261,1775280568380,-150.99,9.3e-05,2]
[419678262,1775280568773,-299.99,9.3e-05,2]
[419678263,1775280568796,-1266.82,9.3e-05,2]
[419678264,1775280568817,-4999.99,9.3e-05,2]
[419678265,1775280568838,-9277.79417706,9.3e-05,2]
[419678266,1775280569338,156.0,6.066e-05,2]
[419678267,1775280569404,156.0,6.066e-05,2]
[419678268,1775280569469,156.0,6.066e-05,2]
[419678269,1775280569525,156.0,6.066e-05,2]
[419678270,1775280571352,156.0,6.066e-05,2]
[419678271,1775280571641,156.0,6.066e-05,2]
[419678272,1775280571890,156.0,6.066e-05,2]
[419678273,1775280572177,156.0,6.066e-05,2]
[419678274,1775280572401,156.0,6.066e-05,2]
[419678275,1775280572678,156.0,6.066e-05,2]
[419678276,1775280572982,156.0,6.066e-05,2]
[419678277,1775280573108,-874.04328479,8.961e-05,2]
[419678278,1775280573136,-722.19582294,9.3e-05,2]
[419678279,1775280573163,-3657.01,9.3e-05,2]
[419678280,1775280573188,-9999.99,9.3e-05,2]
[419678281,1775280573212,-150.99,9.3e-05,2]
[419678282,1775280573238,-1032.29,9.3e-05,2]
[419678283,1775280573267,-5580.07,9.3e-05,2]
[419678284,1775280573295,-15222.22999227,9.3e-05,2]
[419678285,1775280573390,156.0,6.066e-05,2]
[419678310,1775280633110,-300.0,9.299e-05,2]
[419678311,1775280633119,-80.68182096,9.299e-05,2]
[419678312,1775280633132,-1119.31817904,9.299e-05,2]
[419678313,1775280633141,-180.0,9.299e-05,2]
[419678314,1775280633151,-249.80456245,9.299e-05,2]
[419678315,1775280633173,-14.19543755,9.299e-05,2]
[419678316,1775280633183,-250.0,9.3e-05,2]
[419678317,1775280633193,-1585.80456245,9.3e-05,2]
[419678318,1775280633206,-501.55199785,9.3e-05,2]
[419678319,1775280633217,-339.75260614,9.3e-05,2]
[419678320,1775280633229,-1133.64,9.3e-05,2]
[419678321,1775280633256,-10332.79882738,9.3e-05,2]
[419678322,1775280633305,-5064.92201391,9.3e-05,2]
[419678323,1775280633314,-283.0,9.3e-05,2]
[419678324,1775280633324,-150.0,9.3e-05,2]
[419678325,1775280633335,-9999.99,9.301e-05,2]
[419678326,1775280633345,-9999.99,9.301e-05,2]
[419678327,1775280633357,-250.0,9.311e-05,2]
[419678328,1775280633366,-431.131,9.321e-05,2]
[419678329,1775280633376,-8144.053,9.321e-05,2]
[419678330,1775280633387,-56652.4074,9.333e-05,2]
[419678331,1775280633396,-1000.0,9.355e-05,2]
[419678332,1775280633406,-2500.0,9.355e-05,2]
[419678333,1775280633416,-11690.6017737,9.356e-05,2]
[419678334,1775280633426,-3650.313,9.425e-05,2]
[419678335,1775280633436,-24028.95,9.425e-05,2]
[419678336,1775280633453,-503.23062407,9.433e-05,2]
[419678337,1775280633464,-511.12151388,9.433e-05,2]
[419678338,1775280633474,-335.33598628,9.433e-05,2]
[419678339,1775280633484,-500.76720701,9.433e-05,2]
[419678340,1775280633496,-500.0,9.433e-05,2]
[419678341,1775280633507,-500.0,9.433e-05,2]
[419678342,1775280633516,-500.0,9.433e-05,2]
[419678343,1775280633525,-500.0,9.433e-05,2]
[419678344,1775280633535,-500.0,9.433e-05,2]
[419678345,1775280633545,-500.0,9.453e-05,2]
[419678346,1775280633555,-228.56756134,9.453e-05,2]
[419678347,1775280633565,-713.34,9.455e-05,2]
[419678348,1775280633575,-155.0,9.455e-05,2]
[419678349,1775280633585,-208.28199322,9.455e-05,2]
[419678350,1775280633596,-321.71827324,9.455e-05,2]
[419678351,1775280633607,-500.0,9.455e-05,2]
[419678352,1775280633617,-326.82797399,9.455e-05,2]
[419678353,1775280633629,-500.0,9.455e-05,2]
[419678354,1775280633639,-319.3338316,9.455e-05,2]
[419678355,1775280633648,-553.28944153,9.455e-05,2]
[419678356,1775280633658,-500.0,9.455e-05,2]
[419678357,1775280633667,-500.0,9.455e-05,2]
[419678358,1775280633677,-500.0,9.455e-05,2]
[419678359,1775280633686,-500.0,9.455e-05,2]
[419678360,1775280633695,-500.0,9.455e-05,2]
[419678361,1775280633706,-500.0,9.456e-05,2]
[419678362,1775280633715,-22641.79577987,9.456e-05,2]
[419678363,1775280633727,-867.29465335,9.456e-05,2]
[419678368,1775280638537,-500.0,9.455e-05,2]
[419678369,1775280638547,-500.0,9.455e-05,2]
[419678370,1775280638558,-500.0,9.455e-05,2]
[419678371,1775280638567,-156.91,9.455e-05,2]
[419678372,1775280638579,-343.09,9.455e-05,2]
[419678373,1775280638588,-500.0,9.455e-05,2]
[419678374,1775280638598,-500.0,9.455e-05,2]
[419678375,1775280638607,-422.15905399,9.455e-05,2]
[419678376,1775280638616,-500.0,9.455e-05,2]
[419678377,1775280638625,-500.0,9.455e-05,2]
[419678378,1775280638635,-500.0,9.455e-05,2]
[419678379,1775280638644,-500.0,9.455e-05,2]
[419678380,1775280638653,-378.92088811,9.455e-05,2]
[419678381,1775280638704,-121.07911189,9.455e-05,2]
[419678382,1775280638714,-500.0,9.455e-05,2]
[419678383,1775280638723,-500.0,9.455e-05,2]
[419678384,1775280638732,-500.0,9.455e-05,2]
[419678385,1775280638741,-500.0,9.455e-05,2]
[419678386,1775280638750,-500.0,9.455e-05,2]
[419678387,1775280638760,-500.0,9.455e-05,2]
[419678388,1775280638770,-530.94256925,9.455e-05,2]
[419678389,1775280638779,-500.0,9.455e-05,2]
[419678390,1775280638788,-500.0,9.455e-05,2]
[419678391,1775280638798,-500.0,9.455e-05,2]
[419678392,1775280638808,-500.0,9.455e-05,2]
[419678393,1775280638817,-477.14091769,9.455e-05,2]
[419678394,1775280638826,-500.0,9.455e-05,2]
[419678395,1775280638836,-500.0,9.455e-05,2]
[419678396,1775280638845,-500.0,9.455e-05,2]
[419678397,1775280638854,-500.0,9.455e-05,2]
[419678398,1775280638864,-500.0,9.455e-05,2]
[419678399,1775280638874,-500.0,9.455e-05,2]
[419678400,1775280638883,-500.0,9.455e-05,2]
[419678401,1775280638893,-500.0,9.455e-05,2]
[419678402,1775280638904,-500.0,9.455e-05,2]
[419678403,1775280638914,-500.0,9.455e-05,2]
[419678404,1775280638924,-500.0,9.455e-05,2]
[419678405,1775280638935,-500.0,9.455e-05,2]
[419678406,1775280638946,-500.0,9.455e-05,2]
[419678407,1775280638955,-500.0,9.455e-05,2]
[419678408,1775280638966,-500.0,9.455e-05,2]
[419678409,1775280638975,-500.0,9.455e-05,2]
[419678410,1775280638985,-500.0,9.455e-05,2]
[419678412,1775280638995,-500.0,9.455e-05,2]
[419678414,1775280639006,-500.0,9.455e-05,2]
[419678416,1775280639015,-500.0,9.455e-05,2]
[419678418,1775280639025,-500.0,9.455e-05,2]
[419678420,1775280639034,-500.0,9.455e-05,2]
[419678422,1775280639044,-500.0,9.455e-05,2]
[419678424,1775280639053,-556.2246252,9.462e-05,2]
[419678426,1775280639063,-6520.63602432,9.462e-05,2]
[419678427,1775280639073,-471.0,9.527e-05,2]
[419678429,1775280639083,-1973.0,9.529e-05,2]
[419678431,1775280639092,-212.0,9.546e-05,2]
[419678433,1775280639101,-1657.0,9.548e-05,2]
[419678434,1775280639111,-704.82170451,9.567e-05,2]
[419678435,1775280639120,-220.0,9.617e-05,2]
[419678436,1775280639129,-1002.0,9.697e-05,2]
[419678437,1775280639139,-415.81122194,9.699e-05,2]
[419678438,1775280639147,-500.0,9.727e-05,2]
[419678439,1775280639157,-713.34,9.729e-05,2]
[419678440,1775280639166,-150.0,9.8e-05,2]
[419678441,1775280639175,-500.0,9.962e-05,2]
[419678442,1775280639185,-500.0,9.962e-05,2]
[419678443,1775280639194,-500.0,9.962e-05,2]
[419678444,1775280639204,-500.0,9.962e-05,2]
[419678445,1775280639213,-500.0,9.962e-05,2]
[419678446,1775280639222,-500.0,9.962e-05,2]
[419678447,1775280639233,-500.0,9.962e-05,2]
[419678448,1775280639243,-500.0,9.962e-05,2]
[419678449,1775280639252,-500.0,9.962e-05,2]
[419678450,1775280639262,-500.0,9.962e-05,2]
[419678451,1775280639271,-500.0,9.962e-05,2]
[419678452,1775280639280,-500.0,9.962e-05,2]
[419678453,1775280639290,-500.0,9.962e-05,2]
[419678454,1775280639300,-500.0,9.962e-05,2]
[419678455,1775280639311,-500.0,9.962e-05,2]
[419678456,1775280639321,-500.0,9.962e-05,2]
[419678457,1775280639331,-500.0,9.962e-05,2]
[419678458,1775280639340,-500.0,9.962e-05,2]
[419678459,1775280639350,-331.00257002,9.962e-05,2]
[419678460,1775280639361,-151.0,9.973e-05,2]
[419678461,1775280639371,-1000.0,9.981e-05,2]
[419678462,1775280639382,-1000.0,9.981e-05,2]
[419678463,1775280639392,-703.7698014,9.981e-05,2]
[419678464,1775280639401,-1000.0,9.981e-05,2]
[419678465,1775280639411,-1000.0,9.981e-05,2]
[419678466,1775280639421,-479.48381628,0.0001,2]
[419678467,1775280639431,-479.48381628,0.0001,2]
[419678468,1775280639441,-479.48381628,0.0001,2]
[419678469,1775280639452,-753.89852962,0.0001,2]
[419678470,1775280639464,-500.0,0.0001,2]
[419678471,1775280639473,-500.0,0.0001,2]
[419678472,1775280639483,-500.0,0.0001,2]
[419678473,1775280639492,-500.0,0.0001,2]
[419678474,1775280639502,-500.0,0.0001,2]
[419678475,1775280639512,-200.0,0.0001,2]
[419678476,1775280639521,-500.0,0.0001,2]
[419678477,1775280639531,-500.0,0.0001,2]
[419678478,1775280639541,-500.0,0.0001,2]
[419678479,1775280639551,-500.0,0.0001,2]
[419678480,1775280639839,-151.0,0.0001,2]
[419678481,1775280639849,-500.0,0.0001,2]
[419678482,1775280639858,-151.0,0.0001,2]
[419678483,1775280639868,-500.0,0.0001,2]
[419678484,1775280639877,-151.0,0.0001,2]
[419678485,1775280639887,-151.0,0.0001,2]
[419678486,1775280639896,-151.0,0.0001,2]
[419678487,1775280639907,-500.0,0.0001,2]
[419678488,1775280639917,-151.0,0.0001,2]
[419678489,1775280639926,-151.0,0.0001,2]
[419678490,1775280639936,-500.0,0.0001,2]
[419678491,1775280639946,-151.0,0.0001,2]
[419678492,1775280639956,-500.0,0.0001,2]
[419678493,1775280639966,-151.0,0.0001,2]
[419678494,1775280639975,-500.0,0.0001,2]
[419678495,1775280639984,-151.0,0.0001,2]
[419678496,1775280639994,-500.0,0.0001,2]
[419678497,1775280640004,-151.0,0.0001,2]
[419678498,1775280640013,-500.0,0.0001,2]
[419678499,1775280640022,-151.0,0.0001,2]
[419678500,1775280640032,-500.0,0.0001,2]
[419678501,1775280640043,-151.0,0.0001,2]
[419678502,1775280640052,-500.0,0.0001,2]
[419678503,1775280640062,-151.0,0.0001,2]
[419678504,1775280640071,-500.0,0.0001,2]
[419678505,1775280640081,-151.0,0.0001,2]
[419678506,1775280640091,-151.0,0.0001,2]
[419678507,1775280640100,-500.0,0.0001,2]
[419678508,1775280640109,-151.0,0.0001,2]
[419678509,1775280640119,-151.0,0.0001,2]
[419678510,1775280640129,-151.0,0.0001,2]
[419678511,1775280640138,-500.0,0.0001,2]
[419678512,1775280640148,-151.0,0.0001,2]
[419678513,1775280640157,-151.0,0.0001,2]
[419678514,1775280640167,-151.0,0.0001,2]
[419678515,1775280640176,-151.0,0.0001,2]
[419678516,1775280640185,-151.0,0.0001,2]
[419678517,1775280640195,-1348.0348865,0.0001,2]
[419678518,1775280640204,-151.0,0.0001,2]
[419678519,1775280640213,-151.0,0.0001,2]
[419678520,1775280640223,-151.0,0.0001,2]
[419678521,1775280640232,-151.0,0.0001,2]
[419678522,1775280640242,-151.0,0.0001,2]
[419678523,1775280640252,-151.0,0.0001,2]
[419678524,1775280640261,-151.0,0.0001,2]
[419678525,1775280640271,-151.0,0.0001,2]
[419678526,1775280640281,-1386.78395259,0.0001,2]
[419678527,1775280640291,-972.72155052,0.0001,2]
[419678528,1775280640302,-500.0,0.00010001,2]
[419678529,1775280640312,-713.34,0.00010003,2]
[419678530,1775280640322,-151.0,0.0001002,2]
[419678531,1775280640331,-151.0,0.00010081,2]
[419678532,1775280640340,-151.0,0.00010112,2]
[419678533,1775280640350,-1920.0,0.00010211,2]
[419678534,1775280640359,-5000.0,0.00010229,2]
[419678535,1775280640368,-250.0,0.00010229,2]
[419678536,1775280640377,-420.0,0.00010229,2]
[419678537,1775280640386,-1680.0,0.00010229,2]
[419678538,1775280640396,-255.0,0.0001023,2]
[419678539,1775280640405,-500.0,0.00010275,2]
[419678540,1775280640414,-713.34,0.00010277,2]
[419678541,1775280640424,-1009.34265605,0.00010528,2]
[419678542,1775280640433,-1500.0,0.00010528,2]
[419678543,1775280640443,-1500.0,0.00010528,2]
[419678544,1775280640454,-504.31085202,0.00010528,2]
[419678545,1775280640463,-200.0,0.00010548,2]
[419678546,1775280640473,-994.42051783,0.00010548,2]
[419678547,1775280640482,-500.0,0.00010549,2]
[419678548,1775280640492,-713.34,0.00010551,2]
[419678549,1775280640501,-265.07,0.00010696,2]
[419678550,1775280640511,-500.0,0.00010823,2]
[419678551,1775280640519,-713.34,0.00010825,2]
[419678552,1775280640529,-502.00566011,0.00010959,2]
[419678553,1775280640538,-1845.9608693,0.00011076,2]
[419678554,1775280640548,-504.95248982,0.00011076,2]
[419678555,1775280640557,-201.9876343,0.00011096,2]
[419678556,1775280640566,-500.0,0.00011097,2]
[419678557,1775280640576,-713.34,0.00011099,2]
[419678558,1775280640585,-408.0,0.00011252,2]
[419678559,1775280640596,-2351.0,0.00011252,2]
[419678560,1775280640605,-433.0,0.00011253,2]
[419678561,1775280640615,-500.0,0.00011371,2]
[419678563,1775280640624,-713.35134101,0.00011373,2]
[419678564,1775280640634,-500.0,0.00011645,2]
[419678565,1775280640644,-256.89227692,0.00011919,2]
[419678566,1775280640653,-250.0,0.00012288,2]
[419678567,1775280640663,-3292.0,0.00012377,2]
[419678568,1775280640672,-736.0,0.00012378,2]
[419678569,1775280640681,-753.8985296,0.00012631,2]
[419678570,1775280640691,-396.622186,0.00012731,2]
[419678571,1775280640701,-305.49210852,0.00012987,2]
[419678572,1775280640710,-434.73700983,0.00012987,2]
[419678573,1775280640719,-206.66969013,0.00012987,2]
[419678574,1775280640729,-188.51162471,0.00012987,2]
[419678575,1775280640739,-150.0,0.00013012,2]
[419678576,1775280640749,-502.0,0.00013111,2]
[419678577,1775280640758,-697.69086864,0.0001326,2]
[419678578,1775280640767,-1027.34909026,0.0001326,2]
[419678579,1775280640777,-314.43024673,0.0001326,2]
[419678580,1775280640786,-351.335677,0.00013424,2]
[419678581,1775280640796,-4609.0,0.00013615,2]
[419678582,1775280640806,-785.0,0.00013615,2]
[419678583,1775280640815,-500.0,0.00013698,2]
[419678584,1775280640825,-500.0,0.00013698,2]
[419678585,1775280640834,-500.0,0.00013698,2]
[419678586,1775280640843,-500.0,0.00013698,2]
[419678587,1775280640852,-500.0,0.00013698,2]
[419678588,1775280640862,-500.0,0.00013698,2]
[419678589,1775280640872,-500.0,0.00013698,2]
[419678590,1775280640881,-500.0,0.00013698,2]
[419678591,1775280640890,-500.0,0.00013698,2]
[419678592,1775280640901,-500.0,0.00013698,2]
[419678593,1775280640910,-500.0,0.00013698,2]
[419678594,1775280640921,-344.77648348,0.00013698,2]
[419678595,1775280640931,-500.0,0.00013698,2]
[419678596,1775280640940,-500.0,0.00013698,2]
[419678597,1775280640950,-500.0,0.00013698,2]
[419678598,1775280640959,-500.0,0.00013698,2]
[419678599,1775280640969,-500.0,0.00013698,2]
[419678600,1775280640978,-500.0,0.00013698,2]
[419678601,1775280640988,-500.0,0.00013698,2]
[419678602,1775280640997,-500.0,0.00013698,2]
[419678603,1775280641008,-500.0,0.00013698,2]
[419678604,1775280641018,-500.0,0.00013698,2]
[419678605,1775280641027,-500.0,0.00013698,2]
[419678606,1775280641036,-500.0,0.00013698,2]
[419678607,1775280641046,-500.0,0.00013698,2]
[419678608,1775280641055,-500.0,0.00013698,2]
[419678609,1775280641064,-500.0,0.00013698,2]
[419678610,1775280641074,-500.0,0.00013698,2]
[419678611,1775280641084,-500.0,0.00013698,2]
[419678612,1775280641093,-500.0,0.00013698,2]
[419678613,1775280641102,-500.0,0.00013698,2]
[419678614,1775280641114,-500.0,0.00013698,2]
[419678615,1775280641123,-500.0,0.00013698,2]
[419678616,1775280641133,-500.0,0.00013698,2]
[419678617,1775280641142,-500.0,0.00013698,2]
[419678618,1775280641152,-500.0,0.00013698,2]